bitfinex-derivatives/quotes_SOLF0:USTF0_20250114
["timestamp","ask_amount","ask_price","bid_price","bid_amount"]
[1736873173605,19.62417381,186.27,186.18,2.6866]
[1736873174012,2.6862,186.22,186.18,2.6866]
[1736873174207,5.88,186.27,186.16,13.74417381]
[1736873174407,2.6857,186.25,186.19,13.74417381]
[1736873174906,15.29137381,186.3,186.22,13.74417381]
[1736873174907,1.5472,186.3,186.22,13.74417381]
[1736873175107,5.9,186.31,186.25,13.74417381]
[1736873175306,1.6396,186.36,186.29,2.6851]
[1736873175505,2.6845,186.34,186.31,13.74417381]
[1736873175906,5.9,186.38,186.31,13.74417381]
[1736873176211,1.5829,186.39,186.31,13.74417381]
[1736873176411,5.9,186.38,186.31,13.74417381]
[1736873176810,2.6843,186.35,186.31,13.74417381]
[1736873177107,5.9,186.38,186.31,13.74417381]
[1736873177402,1.5829,186.39,186.31,13.74417381]
[1736873177610,1.5829,186.39,186.22,4.3374]
[1736873177809,2.6842,186.36,186.3,2.6849]
[1736873178014,2.6842,186.36,186.28,21.90717736]
[1736873178309,1.5829,186.39,186.28,21.90717736]
[1736873178511,2.684,186.37,186.28,21.90717736]
[1736873178908,2.684,186.37,186.32,2.6846]
[1736873180109,2.6842,186.36,186.32,2.6846]
[1736873182313,1.6396,186.4,186.28,21.90717736]
[1736873182513,2.684,186.38,186.34,2.6843]
[1736873182714,1.6396,186.4,186.31,21.90717736]
[1736873184208,2.684,186.37,186.33,2.6846]
[1736873186115,7.5381,186.42,186.34,21.90717736]
[1736873186415,1.58,186.45,186.34,21.90717736]
[1736873186617,1.58,186.45,186.35,1.6651]
[1736873187420,2.6832,186.43,186.38,2.6838]
[1736873189323,2.6833,186.42,186.38,2.6838]
[1736873190022,2.6831,186.44,186.39,2.6837]
[1736873190215,195.0,186.46,186.39,2.6837]
[1736873190715,2.683,186.44,186.39,2.6837]
[1736873190912,2.683,186.44,186.4,2.6835]
[1736873192215,10.69574537,186.47,186.37,21.90717736]
[1736873192411,10.69574537,186.47,186.35,1.6651]
[1736873192817,2.6831,186.44,186.39,2.6836]
[1736873193420,2.6831,186.44,186.4,2.6835]
[1736873194020,2.6831,186.44,186.41,2.6834]
[1736873194720,10.69574537,186.47,186.37,21.90717736]
[1736873195217,2.6832,186.43,186.37,21.90717736]
[1736873195412,2.6832,186.43,186.38,2.6837]
[1736873195619,2.6832,186.43,186.37,21.90717736]
[1736873195818,2.6832,186.43,186.39,2.6836]
[1736873196121,10.69574537,186.47,186.39,2.6836]
[1736873196122,2.6833,186.42,186.39,2.6836]
[1736873196420,10.69574537,186.47,186.39,2.6836]
[1736873196621,2.6832,186.43,186.39,2.6836]
[1736873197022,10.69574537,186.47,186.35,1.6651]
[1736873197514,10.69574537,186.47,186.37,21.90717736]
[1736873198016,10.69574537,186.47,186.35,1.6651]
[1736873198416,2.6833,186.43,186.39,2.6836]
[1736873199317,2.6833,186.43,186.38,13.68319396]
[1736873199619,2.6833,186.43,186.4,2.6835]
[1736873199820,2.6831,186.44,186.38,13.68319396]
[1736873200022,2.6831,186.44,186.4,2.6835]
[1736873200621,2.6832,186.43,186.4,2.6835]
[1736873200821,10.69574537,186.47,186.4,2.6835]
[1736873201222,2.6831,186.44,186.4,2.6835]
[1736873203322,10.69574537,186.47,186.38,13.68319396]
[1736873203529,2.6828,186.46,186.42,2.6832]
[1736873203822,2.6828,186.46,186.38,13.68319396]
[1736873203823,1.7032,186.51,186.41,13.68319396]
[1736873204021,2.6825,186.48,186.44,2.683]
[1736873204423,2.6826,186.47,186.44,2.683]
[1736873204625,2.6826,186.47,186.43,2.6831]
[1736873206326,2.6825,186.48,186.44,2.6829]
[1736873206726,5.86,186.5,186.35,7.5251]
[1736873206727,19.54319396,186.5,186.35,7.5251]
[1736873206929,0.90850687,186.49,186.4,13.68319396]
[1736873207229,2.6826,186.47,186.43,2.683]
[1736873207532,5.86,186.5,186.43,2.683]
[1736873207919,0.90855063,186.49,186.4,13.68319396]
[1736873208229,0.90855063,186.49,186.37,13.68319396]
[1736873208429,2.6834,186.42,186.38,2.6837]
[1736873208825,2.6834,186.42,186.37,13.68319396]
[1736873209229,1.5612,186.48,186.37,13.68319396]
[1736873209427,2.6834,186.41,186.37,13.68319396]
[1736873209628,2.6834,186.41,186.38,2.6837]
[1736873209933,1.5612,186.48,186.37,13.68319396]
[1736873211526,19.54319396,186.5,186.35,1.6651]
[1736873211527,5.86,186.5,186.42,2.6831]
[1736873212327,2.6828,186.46,186.42,2.6831]
[1736873213432,2.6825,186.48,186.44,2.6829]
[1736873214726,2.6825,186.48,186.45,2.6828]
[1736873215035,2.6823,186.49,186.43,13.68319396]
[1736873215429,2.683,186.45,186.4,13.68319396]
[1736873215631,13.68319396,186.5,186.4,13.68319396]
[1736873215831,0.90953094,186.49,186.4,13.68319396]
[1736873216031,0.90953094,186.49,186.41,2.6834]
[1736873216433,0.90953094,186.49,186.4,13.68319396]
[1736873216635,2.6831,186.44,186.4,16.36669396]
[1736873218436,13.68319396,186.5,186.4,16.36669396]
[1736873218637,0.9084602,186.49,186.4,16.36669396]
[1736873219732,2.6831,186.44,186.4,16.36669396]
[1736873219927,21.11305766,186.5,186.4,13.68319396]
[1736873220131,0.90864316,186.49,186.38,2.6837]
[1736873220732,2.6834,186.42,186.38,2.6837]
[1736873220931,5.84,186.45,186.35,2.6842]
[1736873221134,3.2906,186.44,186.35,2.6842]
[1736873221730,3.2906,186.44,186.34,13.68319396]
[1736873221931,3.2906,186.44,186.37,13.68319396]
[1736873222443,2.6838,186.39,186.35,2.6843]
[1736873222644,16.97379396,186.44,186.34,13.68319396]
[1736873223238,16.97379396,186.44,186.34,16.36759396]
[1736873223433,16.97379396,186.44,186.31,13.68319396]
[1736873223639,2.6843,186.36,186.31,13.68319396]
[1736873224338,2.6843,186.36,186.32,2.6846]
[1736873225238,5.86,186.4,186.31,13.68319396]
[1736873225436,1.6168,186.39,186.3,2.685]
[1736873227049,1.6168,186.39,186.28,15.22759396]
[1736873227050,2.684,186.37,186.33,2.6845]
[1736873228349,2.684,186.37,186.31,13.68319396]
[1736873228945,2.684,186.37,186.33,2.6845]
[1736873229248,7.44292643,186.43,186.34,13.68319396]
[1736873229448,5.88,186.42,186.34,13.68319396]
[1736873229644,5.88,186.42,186.31,13.68319396]
[1736873229846,2.6838,186.39,186.31,13.68319396]
[1736873230751,2.6836,186.4,186.34,13.68319396]
[1736873230956,5.88,186.43,186.34,13.68319396]
[1736873231753,5.88,186.43,186.31,13.68319396]
[1736873231950,14.59272717,186.42,186.31,13.68319396]
[1736873232151,2.6845,186.34,186.31,13.68319396]
[1736873233155,7.44480435,186.41,186.31,13.68319396]
[1736873233356,7.44480435,186.41,186.28,15.22759396]
[1736873233553,13.68319396,186.39,186.28,13.68319396]
[1736873233754,2.6848,186.32,186.28,13.68319396]
[1736873234059,5.88,186.34,186.28,13.68319396]
[1736873234448,2.6847,186.33,186.28,13.68319396]
[1736873234653,5.88,186.34,186.28,13.68319396]
[1736873235158,4.2504,186.37,186.33,2.6846]
[1736873237161,8.5638,186.39,186.31,13.68319396]
[1736873237355,5.88,186.42,186.34,13.68319396]
[1736873237662,5.88,186.42,186.32,1.6026]
[1736873237663,2.6839,186.38,186.35,2.6842]
[1736873237855,2.6839,186.38,186.32,1.6026]
[1736873238252,2.6839,186.38,186.34,2.6843]
[1736873238463,2.6842,186.36,186.32,1.6026]
[1736873239258,2.6844,186.35,186.31,13.68319396]
[1736873239557,13.68319396,186.39,186.27,114.72969556]
[1736873239758,13.68319396,186.39,186.27,103.7318016]
[1736873239962,195.91056096,186.38,186.27,101.0465016]
[1736873240157,195.0,186.38,186.27,101.0465016]
[1736873240460,3.2312,186.37,186.27,101.0465016]
[1736873240859,13.68319396,186.36,186.27,101.0465016]
[1736873241061,5.9,186.35,186.27,101.0465016]
[1736873241664,2.6846,186.33,186.27,101.0465016]
[1736873241858,5.9,186.35,186.27,101.0465016]
[1736873242162,2.6846,186.33,186.27,101.0465016]
[1736873242764,2.6847,186.32,186.29,2.6851]
[1736873243167,3.2312,186.37,186.32,2.6847]
[1736873243462,5.88,186.37,186.32,13.68319396]
[1736873243764,5.9,186.42,186.34,2.6843]
[1736873244066,2.684,186.38,186.34,2.6843]
[1736873244260,5.9,186.42,186.32,13.68319396]
[1736873244563,5.9,186.42,186.27,101.0465016]
[1736873244564,2.6842,186.36,186.3,13.68319396]
[1736873245362,2.6842,186.36,186.32,2.6847]
[1736873245761,19.58319396,186.42,186.3,13.68319396]
[1736873245957,13.68319396,186.39,186.27,114.72969556]
[1736873246158,1.6617,186.38,186.27,114.72969556]
[1736873246367,13.68319396,186.36,186.24,15.23679396]
[1736873246663,7.5587,186.35,186.24,15.23679396]
[1736873247057,2.6852,186.29,186.24,15.23679396]
[1736873247258,7.5587,186.35,186.24,15.23679396]
[1736873247458,2.6856,186.26,186.22,2.6861]
[1736873247667,13.68319396,186.33,186.21,13.68319396]
[1736873248070,2.6857,186.26,186.21,16.36949396]
[1736873248469,5.92,186.28,186.21,13.68319396]
[1736873249562,8.6053,186.28,186.21,13.68319396]
[1736873249767,5.92,186.28,186.21,13.68319396]
[1736873250768,2.6854,186.27,186.23,2.6859]
[1736873251465,5.92,186.28,186.21,13.68319396]
[1736873252062,5.92,186.28,186.26,2.6855]
[1736873252269,5.92,186.33,186.26,13.68319396]
[1736873252464,2.6846,186.33,186.26,13.68319396]
[1736873252665,7.5787,186.35,186.26,13.68319396]
[1736873253071,2.6848,186.32,186.29,2.6851]
[1736873253268,1.6587,186.35,186.26,13.68319396]
[1736873254070,2.6854,186.27,186.26,13.68319396]
[1736873254371,1.6587,186.35,186.26,13.68319396]
[1736873255671,2.6849,186.31,186.27,2.6853]
[1736873256566,1.6587,186.35,186.27,2.6853]
[1736873256772,2.6848,186.32,186.26,13.68319396]
[1736873257073,1.6587,186.35,186.26,13.68319396]
[1736873257270,2.6846,186.33,186.26,13.68319396]
[1736873257470,5.9,186.34,186.3,2.6849]
[1736873257671,5.9,186.34,186.26,13.68319396]
[1736873258379,5.9,186.34,186.22,2.5511]
[1736873258572,5.9,186.34,186.23,13.68319396]
[1736873258770,5.9,186.34,186.26,2.6856]
[1736873259276,2.6849,186.31,186.26,2.6855]
[1736873259469,5.9,186.34,186.24,1.6513]
[1736873260169,5.9,186.34,186.26,13.68319396]
[1736873260577,2.6846,186.33,186.29,2.685]
[1736873261169,2.6844,186.35,186.29,13.68319396]
[1736873261471,5.92,186.38,186.29,13.68319396]
[1736873261671,5.92,186.39,186.33,2.6845]
[1736873262072,5.92,186.39,186.29,13.68319396]
[1736873262272,2.6841,186.36,186.33,2.6845]
[1736873263180,2.684,186.37,186.34,2.6844]
[1736873264374,2.6838,186.39,186.35,2.6842]
[1736873264975,196.6953,186.43,186.35,13.68319396]
[1736873265171,5.92,186.43,186.35,13.68319396]
[1736873265376,2.6836,186.4,186.36,4.2911]
[1736873265585,5.92,186.43,186.32,13.68319396]
[1736873266276,2.684,186.38,186.34,2.6843]
[1736873266678,15.31899396,186.42,186.33,2.6845]
[1736873266679,2.6841,186.37,186.33,2.6845]
[1736873267278,2.684,186.38,186.34,2.6844]
[1736873267478,15.31899396,186.42,186.34,2.6844]
[1736873267878,2.684,186.38,186.34,2.6844]
[1736873269478,2.684,186.37,186.34,2.6844]
[1736873270278,1.6358,186.42,186.33,13.68319396]
[1736873270977,2.6839,186.38,186.35,2.6843]
[1736873271382,1.6358,186.42,186.33,13.68319396]
[1736873271682,2.684,186.37,186.34,2.6844]
[1736873271878,2.684,186.37,186.33,13.68319396]
[1736873272385,2.6843,186.36,186.32,13.68319396]
[1736873272777,1.6358,186.42,186.32,13.68319396]
[1736873273181,2.6839,186.38,186.32,13.68319396]
[1736873273378,1.6358,186.42,186.32,13.68319396]
[1736873273686,16.88489396,186.42,186.29,15.29029396]
[1736873274185,2.6844,186.35,186.31,2.6847]
[1736873274576,16.88489396,186.42,186.31,2.6847]
[1736873274781,2.6845,186.34,186.3,2.685]
[1736873275885,2.6845,186.34,186.31,2.6848]
[1736873276894,5.9,186.36,186.29,15.29029396]
[1736873277081,8.5843,186.36,186.33,2.6846]
[1736873277482,8.5843,186.36,186.29,15.29029396]
[1736873277683,8.5843,186.36,186.32,2.6847]
[1736873278884,5.9,186.36,186.32,2.6847]
[1736873279183,2.6843,186.35,186.32,2.6847]
[1736873279786,2.6843,186.35,186.31,2.6848]
[1736873280488,2.6843,186.35,186.32,2.6846]
[1736873281488,5.9,186.36,186.34,8.76397184]
[1736873281685,5.88,186.4,186.34,8.76397184]
[1736873281884,8.76397184,186.39,186.34,8.76397184]
[1736873282089,8.76397184,186.39,186.32,8.76397184]
[1736873282679,2.6845,186.34,186.29,1.6071]
[1736873282884,2.6845,186.34,186.32,8.76397184]
[1736873283284,8.76397184,186.39,186.29,1.6071]
[1736873283590,2.6847,186.32,186.3,8.76397184]
[1736873284086,8.76397184,186.37,186.3,11.44897184]
[1736873284284,5.88,186.4,186.32,8.76397184]
[1736873284489,14.64397184,186.4,186.32,8.76397184]
[1736873284789,8.76397184,186.36,186.29,8.76397184]
[1736873284980,8.76397184,186.32,186.27,8.76397184]
[1736873285184,14.66397184,186.32,186.27,8.76397184]
[1736873285385,2.6852,186.29,186.27,8.76397184]
[1736873285687,14.66397184,186.32,186.27,8.76397184]
[1736873285884,5.9,186.32,186.29,8.76397184]
[1736873286293,2.685,186.3,186.27,8.76397184]
[1736873286483,5.9,186.32,186.27,8.76397184]
[1736873286484,14.66397184,186.32,186.27,8.76397184]
[1736873287291,2.6849,186.31,186.26,2.6855]
[1736873287481,14.66397184,186.32,186.26,8.76397184]
[1736873288085,8.76397184,186.34,186.28,8.76397184]
[1736873288293,5.88,186.33,186.3,8.76397184]
[1736873288592,2.6848,186.32,186.3,8.76397184]
[1736873289286,2.6848,186.32,186.28,2.6853]
[1736873289695,2.6848,186.32,186.29,2.6851]
[1736873289883,2.6848,186.32,186.26,13.70003475]
[1736873290295,2.6848,186.32,186.28,2.6852]
[1736873290489,2.6848,186.32,186.26,13.70003475]
[1736873290994,1.5966,186.35,186.29,13.70003475]
[1736873291385,5.88,186.36,186.34,2.6844]
[1736873291585,1.5692,186.4,186.34,2.6844]
[1736873291791,5.88,186.39,186.34,2.6844]
[1736873292489,5.88,186.39,186.32,13.70003475]
[1736873292688,2.684,186.37,186.33,2.6845]
[1736873292892,5.88,186.39,186.29,13.70003475]
[1736873293392,5.88,186.39,186.23,1.573]
[1736873293393,13.70003475,186.38,186.26,13.70003475]
[1736873293594,200.88,186.39,186.29,13.70003475]
[1736873293801,5.88,186.39,186.34,2.6843]
[1736873295097,2.6838,186.39,186.35,2.6843]
[1736873295995,2.6839,186.38,186.35,2.6843]
[1736873297294,2.6837,186.39,186.35,2.6843]
[1736873299895,10.69818304,186.41,186.35,13.70003475]
[1736873300094,153.90170157,186.46,186.35,13.70003475]
[1736873300297,146.36400157,186.46,186.38,13.70003475]
[1736873300497,146.36400157,186.46,186.41,13.70003475]
[1736873300994,2.6827,186.46,186.42,2.6833]
[1736873301600,2.6831,186.43,186.39,2.6836]
[1736873301793,2.6831,186.43,186.38,13.70003475]
[1736873302295,3.24,186.48,186.38,13.70003475]
[1736873302497,3.24,186.48,186.36,13.70003475]
[1736873302902,3.24,186.48,186.37,2.684]
[1736873303196,13.70003475,186.46,186.34,98.36282467]
[1736873303405,13.70003475,186.43,186.33,1.6904]
[1736873303595,2.6838,186.39,186.33,1.6904]
[1736873304099,2.6838,186.39,186.35,2.6842]
[1736873306102,2.6836,186.4,186.36,2.6841]
[1736873306306,1.5645,186.41,186.36,2.6841]
[1736873306904,2.6836,186.4,186.36,2.6841]
[1736873307499,4.2479,186.41,186.35,2.6842]
[1736873307700,5.84,186.42,186.36,13.70003475]
[1736873308605,2.6836,186.4,186.36,16.38403475]
[1736873309703,5.84,186.42,186.36,13.70003475]
[1736873310004,1.671,186.46,186.39,13.70003475]
[1736873310606,7.491,186.46,186.39,13.70003475]
[1736873310810,2.6831,186.44,186.4,2.6834]
[1736873311012,7.491,186.46,186.4,2.6834]
[1736873311202,7.491,186.46,186.39,13.70003475]
[1736873311505,2.6832,186.43,186.39,16.38373475]
[1736873314110,5.8,186.45,186.39,13.70003475]
[1736873314414,10.69350724,186.49,186.42,13.70003475]
[1736873314803,2.6826,186.47,186.44,2.683]
[1736873315807,13.37580724,186.49,186.44,2.683]
[1736873316003,13.37580724,186.49,186.42,13.70003475]
[1736873316209,10.69350724,186.49,186.42,13.70003475]
[1736873316509,13.37580724,186.49,186.46,2.6826]
[1736873317203,13.37580724,186.49,186.42,13.70003475]
[1736873317402,13.37580724,186.49,186.45,2.6828]
[1736873317609,10.69350724,186.49,186.42,13.70003475]
[1736873317806,10.69350724,186.49,186.44,2.6829]
[1736873318007,2.6824,186.48,186.44,2.6829]
[1736873318812,13.37580724,186.49,186.45,2.6828]
[1736873319312,2.6822,186.5,186.47,2.6825]
[1736873320017,1.6931,186.53,186.45,13.70003475]
[1736873320216,5.8,186.54,186.48,13.70003475]
[1736873320612,8.4816,186.54,186.49,2.6821]
[1736873321013,2.6816,186.54,186.49,2.6821]
[1736873321214,29.25805608,186.61,186.48,13.70003475]
[1736873321412,5.8,186.6,186.48,13.70003475]
[1736873321811,2.6814,186.56,186.51,2.6819]
[1736873322011,5.8,186.59,186.51,2.6819]
[1736873323417,5.8,186.59,186.49,2.6822]
[1736873323713,13.70003475,186.58,186.49,2.6822]
[1736873323916,13.70003475,186.58,186.48,16.38243475]
[1736873324117,5.8,186.57,186.48,16.38243475]
[1736873324519,2.6818,186.53,186.48,16.38243475]
[1736873325517,5.8,186.57,186.47,2.6825]
[1736873326120,5.8,186.57,186.48,2.6824]
[1736873327120,2.6819,186.52,186.48,2.6824]
[1736873327621,13.70003475,186.55,186.42,13.70003475]
[1736873327920,2.6825,186.48,186.42,13.70003475]
[1736873328420,2.6825,186.48,186.44,2.6829]
[1736873331119,5.8,186.5,186.39,13.70003475]
[1736873331323,13.70003475,186.49,186.39,13.70003475]
[1736873331820,2.6832,186.43,186.4,2.6835]
[1736873332323,2.6834,186.42,186.38,2.6837]
[1736873332719,13.70003475,186.49,186.38,2.6837]
[1736873332920,2.6828,186.45,186.38,2.6837]
[1736873333123,13.70003475,186.49,186.38,2.6837]
[1736873333322,1.5877,186.47,186.38,2.6837]
[1736873334521,0.91065011,186.46,186.38,2.6837]
[1736873334724,2.6834,186.42,186.38,2.6837]
[1736873336223,2.6834,186.41,186.38,2.6837]
[1736873337928,5.8,186.43,186.36,13.70003475]
[1736873338132,19.50003475,186.43,186.33,13.70003475]
[1736873338324,1.54,186.42,186.3,13.70003475]
[1736873339032,13.70003475,186.4,186.3,13.70003475]
[1736873339232,1.668,186.39,186.3,13.70003475]
[1736873339423,2.6846,186.34,186.3,16.38493475]
[1736873339932,2.6846,186.34,186.3,13.70003475]
[1736873341131,2.6846,186.34,186.31,2.6848]
[1736873341626,5.8,186.36,186.31,2.6848]
[1736873341829,2.6843,186.35,186.31,2.6848]
[1736873342127,1.54,186.42,186.35,2.6842]
[1736873342330,5.8,186.39,186.33,13.70003475]
[1736873343032,2.6839,186.38,186.34,2.6844]
[1736873344136,8.4837,186.39,186.35,2.6842]
[1736873344433,1.54,186.42,186.28,1.7053]
[1736873344434,1.54,186.42,186.36,13.70003475]
[1736873344825,2.6835,186.41,186.38,2.6838]
[1736873345436,1.54,186.42,186.39,2.6836]
[1736873345741,5.8,186.43,186.39,2.6836]
[1736873346439,1.6915,186.46,186.36,13.70003475]
[1736873346640,2.6831,186.43,186.4,2.6835]
[1736873347338,7.4915,186.46,186.36,13.70003475]
[1736873347540,2.6834,186.41,186.38,2.6838]
[1736873348248,2.6836,186.4,186.37,2.6839]
[1736873349346,2.6836,186.4,186.36,13.70003475]
[1736873349646,2.6836,186.4,186.38,2.6838]
[1736873349840,2.6833,186.42,186.36,13.70003475]
[1736873350244,7.4915,186.46,186.36,13.70003475]
[1736873350639,7.4915,186.46,186.41,2.6833]
[1736873350843,7.4915,186.46,186.36,13.70003475]
[1736873351546,3.1578,186.5,186.42,13.70003475]
[1736873351741,7.3393,186.5,186.42,13.70003475]
[1736873351944,2.6824,186.49,186.42,13.70003475]
[1736873352543,2.6824,186.49,186.45,2.6827]
[1736873353048,7.3393,186.5,186.42,13.70003475]
[1736873353249,2.6823,186.49,186.46,2.6827]
[1736873353550,7.3393,186.5,186.42,13.70003475]
[1736873353951,2.6825,186.48,186.45,2.6828]
[1736873355459,2.6823,186.49,186.46,2.6827]
[1736873355649,7.3393,186.5,186.42,13.70003475]
[1736873355850,195.0,186.51,186.45,13.70003475]
[1736873356151,5.8,186.52,186.45,13.70003475]
[1736873356350,2.6818,186.52,186.48,2.6824]
[1736873357057,2.6817,186.53,186.49,2.6821]
[1736873357250,1.6779,186.55,186.45,13.70003475]
[1736873357457,7.4237,186.56,186.48,13.70003475]
[1736873357757,2.6815,186.55,186.51,2.682]
[1736873357950,1.6237,186.56,186.48,13.70003475]
[1736873358655,1.6237,186.56,186.45,13.70003475]
[1736873359456,2.6817,186.53,186.45,13.70003475]
[1736873359955,2.6817,186.53,186.49,2.6822]
[1736873360957,1.6237,186.56,186.5,2.6821]
[1736873360958,2.6816,186.54,186.5,2.6821]
[1736873361259,1.6237,186.56,186.48,13.70003475]
[1736873361454,5.8,186.57,186.52,2.6818]
[1736873361658,196.5594,186.6,186.51,13.70003475]
[1736873361958,196.5594,186.6,186.54,2.6814]
[1736873361959,0.91006413,186.59,186.54,2.6814]
[1736873362152,202.3594,186.6,186.54,2.6814]
[1736873362359,196.5594,186.6,186.51,13.70003475]
[1736873362658,6.70997973,186.59,186.51,13.70003475]
[1736873362853,5.8,186.59,186.51,13.70003475]
[1736873363158,5.8,186.59,186.52,2.6818]
[1736873363349,0.91005695,186.58,186.52,2.6818]
[1736873364057,2.6814,186.56,186.52,2.6818]
[1736873365156,5.8,186.59,186.51,13.70003475]
[1736873366258,2.6812,186.57,186.53,2.6816]
[1736873366557,5.8,186.59,186.51,13.70003475]
[1736873366755,0.91005965,186.58,186.51,13.70003475]
[1736873366954,2.6815,186.55,186.51,2.6819]
[1736873367355,2.6815,186.55,186.52,8.74687027]
[1736873368557,8.74687027,186.58,186.52,8.74687027]
[1736873368758,2.6817,186.53,186.5,8.74687027]
[1736873368953,8.74687027,186.56,186.5,8.74687027]
[1736873369262,8.74687027,186.54,186.47,2.6825]
[1736873369457,8.74687027,186.52,186.47,8.74687027]
[1736873370363,8.74687027,186.54,186.47,8.74687027]
[1736873370562,2.6821,186.51,186.47,11.42947027]
[1736873370766,2.6821,186.51,186.47,8.74687027]
[1736873370958,2.6821,186.51,186.49,8.74687027]
[1736873371560,2.6818,186.53,186.49,11.42907027]
[1736873373063,2.6818,186.52,186.49,11.42907027]
[1736873375562,2.6821,186.51,186.47,2.6825]
[1736873375766,8.74687027,186.52,186.47,8.74687027]
[1736873376064,14.54687027,186.52,186.45,8.74687027]
[1736873376260,2.6825,186.48,186.45,8.74687027]
[1736873377357,8.74687027,186.5,186.43,1.6577]
[1736873377660,2.6826,186.47,186.45,8.74687027]
[1736873380063,2.6826,186.47,186.44,8.74687027]
[1736873380665,2.6826,186.47,186.46,8.74687027]
[1736873382158,2.6826,186.47,186.44,11.42977027]
[1736873382762,8.74687027,186.5,186.44,8.74687027]
[1736873383870,2.6827,186.47,186.44,8.74687027]
[1736873384065,2.6827,186.47,186.36,106.806]
[1736873384066,5.8,186.52,186.36,101.4378]
[1736873384262,8.74687027,186.48,186.41,11.43017027]
[1736873384572,2.6827,186.46,186.43,8.74687027]
[1736873386062,2.6827,186.46,186.43,11.42997027]
[1736873386469,5.8,186.52,186.45,8.74687027]
[1736873386769,5.8,186.52,186.46,8.74687027]
[1736873386770,8.74687027,186.51,186.46,8.74687027]
[1736873386974,8.74687027,186.51,186.45,8.74687027]
[1736873387162,2.6824,186.48,186.45,11.42967027]
[1736873387364,5.8,186.52,186.45,11.42967027]
[1736873387577,2.6824,186.49,186.45,11.42967027]
[1736873387772,8.74687027,186.51,186.45,11.42967027]
[1736873388977,2.6824,186.49,186.45,11.42967027]
[1736873390869,2.6824,186.48,186.45,11.42967027]
[1736873391175,8.74687027,186.51,186.45,8.74687027]
[1736873391376,2.6828,186.46,186.44,8.74687027]
[1736873392465,2.6829,186.45,186.44,8.74687027]
[1736873395570,2.6826,186.47,186.44,11.42987027]
[1736873395775,8.74687027,186.49,186.37,104.24227524]
[1736873396072,8.74687027,186.49,186.43,8.74687027]
[1736873396474,2.6828,186.46,186.43,11.42997027]
[1736873397677,2.6828,186.46,186.45,8.74687027]
[1736873398474,16.19304527,186.51,186.37,104.24227524]
[1736873398475,8.74687027,186.49,186.37,104.24227524]
[1736873398775,8.74687027,186.47,186.4,8.74687027]
[1736873398982,2.6835,186.41,186.39,8.74687027]
[1736873399276,5.8,186.45,186.39,8.74687027]
[1736873399477,5.8,186.45,186.41,8.74687027]
[1736873399673,8.4829,186.45,186.43,8.74687027]
[1736873400974,5.8,186.45,186.43,11.42997027]
[1736873401374,1.618,186.48,186.43,8.74687027]
[1736873401571,2.6825,186.48,186.45,11.42967027]
[1736873402083,197.6822,186.5,186.47,8.74687027]
[1736873402469,195.0,186.5,186.46,8.74687027]
[1736873402670,203.74687027,186.5,186.44,8.74687027]
[1736873403071,203.74687027,186.5,186.38,1.6819]
[1736873403072,8.74687027,186.48,186.38,1.6819]
[1736873403579,8.74687027,186.46,186.4,8.74687027]
[1736873403781,8.74687027,186.46,186.38,2.6838]
[1736873403981,1.5625,186.45,186.39,8.74687027]
[1736873404178,5.8,186.44,186.39,8.74687027]
[1736873404580,2.6834,186.42,186.41,8.74687027]
[1736873404778,5.8,186.44,186.41,8.74687027]
[1736873405682,2.6831,186.43,186.41,8.74687027]
[1736873405986,5.8,186.44,186.41,8.74687027]
[1736873406385,203.74687027,186.5,186.43,8.74687027]
[1736873406582,5.8,186.49,186.45,8.74687027]
[1736873406882,2.6829,186.45,186.43,8.74687027]
[1736873407083,8.74687027,186.48,186.43,8.74687027]
[1736873407285,8.74687027,186.48,186.41,8.74687027]
[1736873408088,2.683,186.44,186.41,8.74687027]
[1736873408585,2.683,186.44,186.43,8.74687027]
[1736873408885,5.8,186.49,186.43,8.74687027]
[1736873409085,209.54687027,186.5,186.45,8.74687027]
[1736873409483,2.6825,186.48,186.45,8.74687027]